[Event "Early-Titled-Tuesday-Blitz-May-14-2024"]
[Site "Chess.com"]
[Date "2024.05.14"]
[Round "3"]
[White "ferdipy"]
[Black "Artemiki"]
[Result "0-1"]
[WhiteElo "2310"]
[BlackElo "2598"]
[TimeControl "180+1"]
[EndTime "8:29:57 PDT"]
[Termination "Artemiki won by resignation"]

1. e4 {[%clk 0:02:58.9]} 1... e5 {[%clk 0:02:45.8]} 2. Nf3 {[%clk 0:02:58.6]}
2... Nc6 {[%clk 0:02:46.1]} 3. Bc4 {[%clk 0:02:58.9]} 3... Bc5 {[%clk
0:02:45.3]} 4. b4 {[%clk 0:02:58.8]} 4... Bxb4 {[%clk 0:02:44.6]} 5. c3 {[%clk
0:02:59.7]} 5... Be7 {[%clk 0:02:26.3]} 6. d4 {[%clk 0:03:00.6]} 6... d6 {[%clk
0:02:22.7]} 7. Qb3 {[%clk 0:03:00.7]} 7... Na5 {[%clk 0:01:48.6]} 8. Bxf7+
{[%clk 0:02:54.4]} 8... Kf8 {[%clk 0:01:48.7]} 9. Qa4 {[%clk 0:02:54.7]} 9... c6
{[%clk 0:01:09.2]} 10. Bxg8 {[%clk 0:02:48]} 10... Kxg8 {[%clk 0:01:03.5]} 11.
dxe5 {[%clk 0:02:48]} 11... b5 {[%clk 0:01:00.8]} 12. Qc2 {[%clk 0:02:41.6]}
12... dxe5 {[%clk 0:00:52.5]} 13. Nxe5 {[%clk 0:02:41.8]} 13... Bf6 {[%clk
0:00:50]} 14. Nf3 {[%clk 0:02:41.4]} 14... Bg4 {[%clk 0:00:42.8]} 15. Nbd2
{[%clk 0:02:32]} 15... Nc4 {[%clk 0:00:19.7]} 16. Nxc4 {[%clk 0:02:18.8]} 16...
bxc4 {[%clk 0:00:19.6]} 17. O-O {[%clk 0:02:05.8]} 17... Qd3 {[%clk 0:00:17.9]}
18. Qxd3 {[%clk 0:02:04.6]} 18... cxd3 {[%clk 0:00:17.7]} 19. Bd2 {[%clk
0:01:53.7]} 19... Kf7 {[%clk 0:00:16.1]} 20. Rab1 {[%clk 0:01:45.3]} 20... Rab8
{[%clk 0:00:15.6]} 21. Rb3 {[%clk 0:01:40.9]} 21... Be6 {[%clk 0:00:13.6]} 22.
Ra3 {[%clk 0:01:38.9]} 22... Rb7 {[%clk 0:00:10.8]} 23. e5 {[%clk 0:01:37.6]}
23... Be7 {[%clk 0:00:10.9]} 24. Ra6 {[%clk 0:01:37.2]} 24... Rb2 {[%clk
0:00:07.7]} 25. Rxa7 {[%clk 0:01:31.4]} 25... h6 {[%clk 0:00:02.5]} 26. a4
{[%clk 0:01:23.8]} 26... g5 {[%clk 0:00:02.9]} 27. Be3 {[%clk 0:01:21.6]} 27...
g4 {[%clk 0:00:02.9]} 28. Nd4 {[%clk 0:01:16.9]} 28... d2 {[%clk 0:00:02.2]} 29.
Nxc6 {[%clk 0:01:13.2]} 29... Re8 {[%clk 0:00:01.7]} 30. Rd1 {[%clk 0:01:00.6]}
30... Bb3 {[%clk 0:00:01.6]} 31. Rb7 {[%clk 0:00:46.2]} 31... Bxd1 {[%clk
0:00:01.1]} 32. Rxb2 {[%clk 0:00:46.6]} 32... Bxa4 {[%clk 0:00:01.7]} 33. Bxd2
{[%clk 0:00:39.1]} 33... Bxc6 {[%clk 0:00:02.3]} 34. Bxh6 {[%clk 0:00:39.7]}
34... Bd5 {[%clk 0:00:02.5]} 35. Be3 {[%clk 0:00:36.1]} 35... Rc8 {[%clk
0:00:02.7]} 36. Bd4 {[%clk 0:00:36]} 36... Rc7 {[%clk 0:00:02.6]} 37. h3 {[%clk
0:00:34.1]} 37... gxh3 {[%clk 0:00:02.2]} 38. gxh3 {[%clk 0:00:35]} 38... Be6
{[%clk 0:00:02.6]} 39. Kh2 {[%clk 0:00:34.7]} 39... Rc8 {[%clk 0:00:02.4]} 40.
Rb7 {[%clk 0:00:30.8]} 40... Ke8 {[%clk 0:00:01.8]} 41. Kg3 {[%clk 0:00:26.2]}
41... Bd5 {[%clk 0:00:01.9]} 42. f4 {[%clk 0:00:26.2]} 42... Bxb7 {[%clk
0:00:01.9]} 43. f5 {[%clk 0:00:26]} 43... Bd5 {[%clk 0:00:02.6]} 44. Kf4 {[%clk
0:00:25.8]} 44... Kf7 {[%clk 0:00:02.6]} 45. e6+ {[%clk 0:00:21.8]} 45... Bxe6
{[%clk 0:00:02.6]} 46. fxe6+ {[%clk 0:00:22.7]} 46... Kxe6 {[%clk 0:00:03.5]}
0-1

[Event "Early-Titled-Tuesday-Blitz-May-14-2024"]
[Site "Chess.com"]
[Date "2024.05.14"]
[Round "3"]
[White "Suleyman_Chess06"]
[Black "SoCalJuniorChess"]
[Result "1-0"]
[WhiteElo "2798"]
[BlackElo "2223"]
[TimeControl "180+1"]
[EndTime "8:29:58 PDT"]
[Termination "Suleyman_Chess06 won on time"]

1. Nf3 {[%clk 0:03:00.9]} 1... Nf6 {[%clk 0:02:58.8]} 2. g3 {[%clk 0:03:01.8]}
2... c5 {[%clk 0:02:58.8]} 3. Bg2 {[%clk 0:03:01.2]} 3... d5 {[%clk 0:02:58.4]}
4. O-O {[%clk 0:03:00.4]} 4... Nc6 {[%clk 0:02:58.5]} 5. d4 {[%clk 0:03:00.1]}
5... cxd4 {[%clk 0:02:51.4]} 6. Nxd4 {[%clk 0:03:01]} 6... Nxd4 {[%clk 0:02:50]}
7. Qxd4 {[%clk 0:02:58.4]} 7... e6 {[%clk 0:02:50.6]} 8. c4 {[%clk 0:02:58.3]}
8... Be7 {[%clk 0:02:44.3]} 9. Nc3 {[%clk 0:02:52.5]} 9... dxc4 {[%clk
0:02:40.6]} 10. Qxc4 {[%clk 0:02:47.2]} 10... O-O {[%clk 0:02:24.5]} 11. Rd1
{[%clk 0:02:46.9]} 11... Qb6 {[%clk 0:02:20.4]} 12. Be3 {[%clk 0:02:45.6]} 12...
Qxb2 {[%clk 0:02:17.3]} 13. Rab1 {[%clk 0:02:38.6]} 13... Qc2 {[%clk 0:02:08.7]}
14. Rd3 {[%clk 0:02:07.5]} 14... Nd5 {[%clk 0:01:45.2]} 15. Qb3 {[%clk
0:00:53.6]} 15... Nxe3 {[%clk 0:01:39.3]} 16. Rxe3 {[%clk 0:00:46.1]} 16... Qxb3
{[%clk 0:01:31.4]} 17. Rxb3 {[%clk 0:00:47]} 17... Rb8 {[%clk 0:01:31]} 18. Rd3
{[%clk 0:00:38.6]} 18... Rd8 {[%clk 0:01:24.6]} 19. Nb5 {[%clk 0:00:34.9]} 19...
Rxd3 {[%clk 0:01:20.7]} 20. Rxd3 {[%clk 0:00:35.8]} 20... a6 {[%clk 0:01:18.6]}
21. Nd6 {[%clk 0:00:27.2]} 21... Bxd6 {[%clk 0:01:13.1]} 22. Rxd6 {[%clk
0:00:28.1]} 22... Kf8 {[%clk 0:01:12.7]} 23. Rd8+ {[%clk 0:00:27.9]} 23... Ke7
{[%clk 0:01:12.4]} 24. Rh8 {[%clk 0:00:28.5]} 24... h6 {[%clk 0:01:08.8]} 25. h4
{[%clk 0:00:21.6]} 25... Kd6 {[%clk 0:00:46.2]} 26. h5 {[%clk 0:00:20.3]} 26...
Kc7 {[%clk 0:00:44.5]} 27. Rf8 {[%clk 0:00:17.9]} 27... Bd7 {[%clk 0:00:34.8]}
28. Rxf7 {[%clk 0:00:17.7]} 28... Rg8 {[%clk 0:00:17.5]} 29. Bxb7 {[%clk
0:00:13.9]} 29... Kxb7 {[%clk 0:00:17]} 30. Rxd7+ {[%clk 0:00:14]} 30... Kb6
{[%clk 0:00:17.3]} 31. Re7 {[%clk 0:00:13.7]} 31... Kb5 {[%clk 0:00:09.4]} 32.
Rxe6 {[%clk 0:00:13.5]} 32... a5 {[%clk 0:00:08.5]} 33. Re7 {[%clk 0:00:11.3]}
33... Ka4 {[%clk 0:00:08.3]} 34. e4 {[%clk 0:00:05.9]} 34... Ka3 {[%clk
0:00:07.6]} 35. Ra7 {[%clk 0:00:05.5]} 35... Kxa2 {[%clk 0:00:07.8]} 36. e5
{[%clk 0:00:06]} 36... Kb3 {[%clk 0:00:08.7]} 37. Rxa5 {[%clk 0:00:05.9]} 37...
Kb4 {[%clk 0:00:08.3]} 38. Rd5 {[%clk 0:00:04.5]} 38... Kc4 {[%clk 0:00:08.7]}
39. Rd7 {[%clk 0:00:04.9]} 39... Re8 {[%clk 0:00:07.9]} 40. f4 {[%clk
0:00:05.2]} 40... Rg8 {[%clk 0:00:03.7]} 41. e6 {[%clk 0:00:04.7]} 41... g5
{[%clk 0:00:02.3]} 42. hxg6 {[%clk 0:00:02.6]} 42... Rxg6 {[%clk 0:00:02.3]} 43.
e7 {[%clk 0:00:03.1]} 43... Re6 {[%clk 0:00:02.9]} 44. f5 {[%clk 0:00:03.7]}
44... Re1+ {[%clk 0:00:00.7]} 45. Kf2 {[%clk 0:00:03.7]} 1-0

[Event "Early-Titled-Tuesday-Blitz-May-14-2024"]
[Site "Chess.com"]
[Date "2024.05.14"]
[Round "3"]
[White "kuchma777"]
[Black "fandebobbyfischer"]
[Result "1-0"]
[WhiteElo "2524"]
[BlackElo "2714"]
[TimeControl "180+1"]
[EndTime "8:29:58 PDT"]
[Termination "kuchma777 won by checkmate"]

1. e4 {[%clk 0:02:58]} 1... e6 {[%clk 0:02:59.6]} 2. d4 {[%clk 0:02:57.6]} 2...
d5 {[%clk 0:03:00.1]} 3. Nd2 {[%clk 0:02:57.7]} 3... Be7 {[%clk 0:02:59.3]} 4.
Ngf3 {[%clk 0:02:57.1]} 4... Nf6 {[%clk 0:02:59.6]} 5. Bd3 {[%clk 0:02:56.7]}
5... dxe4 {[%clk 0:02:58.7]} 6. Nxe4 {[%clk 0:02:56.7]} 6... Nxe4 {[%clk
0:02:59.3]} 7. Bxe4 {[%clk 0:02:57.6]} 7... Nd7 {[%clk 0:02:59.9]} 8. O-O {[%clk
0:02:57.3]} 8... Nf6 {[%clk 0:03:00.5]} 9. Bd3 {[%clk 0:02:57.8]} 9... O-O
{[%clk 0:03:01.2]} 10. Be3 {[%clk 0:02:58.3]} 10... b6 {[%clk 0:03:01.8]} 11. c3
{[%clk 0:02:58.6]} 11... Bb7 {[%clk 0:03:02.4]} 12. Ne5 {[%clk 0:02:56.3]} 12...
c5 {[%clk 0:03:02.6]} 13. Qe2 {[%clk 0:02:47.9]} 13... Qd5 {[%clk 0:03:01]} 14.
f3 {[%clk 0:02:47]} 14... Rad8 {[%clk 0:02:55.4]} 15. Rfd1 {[%clk 0:02:37.9]}
15... cxd4 {[%clk 0:02:46.7]} 16. cxd4 {[%clk 0:02:36.6]} 16... Qd6 {[%clk
0:02:35]} 17. Bf2 {[%clk 0:02:35.3]} 17... Nd5 {[%clk 0:02:24.3]} 18. g3 {[%clk
0:02:20.6]} 18... Bf6 {[%clk 0:01:56.7]} 19. a3 {[%clk 0:02:12.7]} 19... Ne7
{[%clk 0:01:49.9]} 20. Rac1 {[%clk 0:02:09.1]} 20... Nf5 {[%clk 0:01:35.9]} 21.
Bb1 {[%clk 0:01:48.4]} 21... g6 {[%clk 0:00:54.8]} 22. Kg2 {[%clk 0:01:21.3]}
22... Qb8 {[%clk 0:00:32.3]} 23. Bxf5 {[%clk 0:01:12.1]} 23... exf5 {[%clk
0:00:33.2]} 24. Nc6 {[%clk 0:01:12.6]} 24... Bxc6 {[%clk 0:00:30.2]} 25. Rxc6
{[%clk 0:01:13.5]} 25... Rfe8 {[%clk 0:00:22.7]} 26. Qc4 {[%clk 0:01:10.8]}
26... Kg7 {[%clk 0:00:13.2]} 27. b4 {[%clk 0:00:59.4]} 27... Rd7 {[%clk
0:00:08.8]} 28. b5 {[%clk 0:00:59.5]} 28... Qd8 {[%clk 0:00:05.8]} 29. d5 {[%clk
0:00:57.5]} 29... Be5 {[%clk 0:00:04.8]} 30. f4 {[%clk 0:00:48.6]} 30... Bd6
{[%clk 0:00:05.1]} 31. Bd4+ {[%clk 0:00:43.9]} 31... f6 {[%clk 0:00:05.5]} 32.
a4 {[%clk 0:00:37.8]} 32... Re4 {[%clk 0:00:06]} 33. Qc3 {[%clk 0:00:27.3]}
33... Be7 {[%clk 0:00:05.9]} 34. Qc4 {[%clk 0:00:15.9]} 34... Kh6 {[%clk
0:00:01.5]} 35. Re6 {[%clk 0:00:09.8]} 35... Rxd5 {[%clk 0:00:01.2]} 36. Rxe4
{[%clk 0:00:10.1]} 36... fxe4 {[%clk 0:00:02.1]} 37. f5 {[%clk 0:00:11]} 37...
g5 {[%clk 0:00:02]} 38. h4 {[%clk 0:00:11]} 38... Bc5 {[%clk 0:00:02.5]} 39.
hxg5+ {[%clk 0:00:11.3]} 39... Kh5 {[%clk 0:00:03.1]} 40. Bxf6 {[%clk
0:00:08.5]} 40... Rd2+ {[%clk 0:00:02.9]} 41. Kh3 {[%clk 0:00:05.1]} 41... Qd3
{[%clk 0:00:02]} 42. Qf7# {[%clk 0:00:03.9]} 1-0

[Event "Early-Titled-Tuesday-Blitz-May-14-2024"]
[Site "Chess.com"]
[Date "2024.05.14"]
[Round "3"]
[White "Nf3c5"]
[Black "KirAk47"]
[Result "0-1"]
[WhiteElo "2628"]
[BlackElo "2451"]
[TimeControl "180+1"]
[EndTime "8:30:00 PDT"]
[Termination "KirAk47 won on time"]

1. e4 {[%clk 0:02:54.5]} 1... c5 {[%clk 0:02:50.5]} 2. Nc3 {[%clk 0:02:48.8]}
2... g6 {[%clk 0:02:40.4]} 3. d4 {[%clk 0:02:44.8]} 3... cxd4 {[%clk 0:02:29.5]}
4. Qxd4 {[%clk 0:02:43.4]} 4... Nf6 {[%clk 0:02:29.3]} 5. Be3 {[%clk 0:02:41]}
5... Nc6 {[%clk 0:02:26.7]} 6. Qd2 {[%clk 0:02:41.4]} 6... Bg7 {[%clk
0:02:24.1]} 7. f3 {[%clk 0:02:42]} 7... O-O {[%clk 0:02:12.2]} 8. Nge2 {[%clk
0:02:35.1]} 8... b5 {[%clk 0:01:59.4]} 9. O-O-O {[%clk 0:02:19]} 9... b4 {[%clk
0:01:52.7]} 10. Nd5 {[%clk 0:02:18.5]} 10... Nxd5 {[%clk 0:01:51.4]} 11. exd5
{[%clk 0:02:15.7]} 11... Ne5 {[%clk 0:01:51.6]} 12. Nf4 {[%clk 0:02:11.1]} 12...
d6 {[%clk 0:01:42.2]} 13. Bd4 {[%clk 0:02:10.1]} 13... a5 {[%clk 0:01:39.2]} 14.
h4 {[%clk 0:02:07]} 14... h5 {[%clk 0:01:21.6]} 15. Kb1 {[%clk 0:02:02.9]} 15...
Qc7 {[%clk 0:01:17.4]} 16. Be2 {[%clk 0:02:00.9]} 16... Bf5 {[%clk 0:00:50.5]}
17. g4 {[%clk 0:01:52]} 17... hxg4 {[%clk 0:00:51.4]} 18. h5 {[%clk 0:01:42.5]}
18... Rac8 {[%clk 0:00:43.4]} 19. Rc1 {[%clk 0:01:34.2]} 19... gxf3 {[%clk
0:00:42.9]} 20. Bf1 {[%clk 0:01:34.2]} 20... g5 {[%clk 0:00:41.5]} 21. h6 {[%clk
0:01:31.3]} 21... Bf6 {[%clk 0:00:37.2]} 22. Nh5 {[%clk 0:01:19.6]} 22... Bg6
{[%clk 0:00:24.7]} 23. Nxf6+ {[%clk 0:01:03.3]} 23... exf6 {[%clk 0:00:25.6]}
24. Ka1 {[%clk 0:01:02.8]} 24... Kh7 {[%clk 0:00:18.3]} 25. Qe3 {[%clk
0:00:56.2]} 25... a4 {[%clk 0:00:13.8]} 26. Bxe5 {[%clk 0:00:55.3]} 26... dxe5
{[%clk 0:00:12.4]} 27. Bb5 {[%clk 0:00:48.9]} 27... Qd6 {[%clk 0:00:12]} 28.
Qxf3 {[%clk 0:00:45.5]} 28... a3 {[%clk 0:00:10.5]} 29. Bc6 {[%clk 0:00:39.9]}
29... axb2+ {[%clk 0:00:10.4]} 30. Kxb2 {[%clk 0:00:40.5]} 30... Rc7 {[%clk
0:00:05.1]} 31. Rhd1 {[%clk 0:00:37.7]} 31... f5 {[%clk 0:00:04.1]} 32. Qe3
{[%clk 0:00:30.3]} 32... Qf6 {[%clk 0:00:03.9]} 33. Qc5 {[%clk 0:00:28.8]} 33...
e4+ {[%clk 0:00:04]} 34. Kb1 {[%clk 0:00:29.4]} 34... Rfc8 {[%clk 0:00:04.5]}
35. Qb5 {[%clk 0:00:12]} 35... f4 {[%clk 0:00:04.7]} 36. Rf1 {[%clk 0:00:10.3]}
36... e3 {[%clk 0:00:04.9]} 37. Rce1 {[%clk 0:00:10.9]} 37... Rxc6 {[%clk
0:00:05.4]} 38. dxc6 {[%clk 0:00:10.8]} 38... Qxc6 {[%clk 0:00:06.3]} 39. Qxc6
{[%clk 0:00:08.3]} 39... Rxc6 {[%clk 0:00:07.2]} 40. Re2 {[%clk 0:00:08.9]}
40... Bf5 {[%clk 0:00:05.1]} 41. Kb2 {[%clk 0:00:08.2]} 41... Kxh6 {[%clk
0:00:05.6]} 42. Kb3 {[%clk 0:00:07.3]} 42... Kg6 {[%clk 0:00:05.8]} 43. Kxb4
{[%clk 0:00:07.7]} 43... Rxc2 {[%clk 0:00:06.5]} 44. Rxc2 {[%clk 0:00:05.2]}
44... Bxc2 {[%clk 0:00:07.4]} 45. a4 {[%clk 0:00:05.6]} 45... Bxa4 {[%clk
0:00:07]} 46. Kxa4 {[%clk 0:00:05.6]} 46... e2 {[%clk 0:00:07.9]} 47. Re1 {[%clk
0:00:05.1]} 47... f3 {[%clk 0:00:08.5]} 48. Kb3 {[%clk 0:00:03.2]} 48... f2
{[%clk 0:00:08.7]} 0-1

[Event "Early-Titled-Tuesday-Blitz-May-14-2024"]
[Site "Chess.com"]
[Date "2024.05.14"]
[Round "3"]
[White "flubs"]
[Black "TomLiu777"]
[Result "1-0"]
[WhiteElo "2424"]
[BlackElo "2249"]
[TimeControl "180+1"]
[EndTime "8:30:01 PDT"]
[Termination "flubs won by resignation"]

1. c4 {[%clk 0:03:00]} 1... Nf6 {[%clk 0:02:59.2]} 2. Nc3 {[%clk 0:03:00.2]}
2... c6 {[%clk 0:02:56.4]} 3. e4 {[%clk 0:02:58.9]} 3... d5 {[%clk 0:02:42.1]}
4. cxd5 {[%clk 0:02:57.9]} 4... cxd5 {[%clk 0:02:09.5]} 5. e5 {[%clk 0:02:57]}
5... d4 {[%clk 0:02:07.7]} 6. exf6 {[%clk 0:02:48.5]} 6... dxc3 {[%clk
0:02:05.8]} 7. dxc3 {[%clk 0:02:01]} 7... Qxd1+ {[%clk 0:02:04.4]} 8. Kxd1
{[%clk 0:02:01.2]} 8... exf6 {[%clk 0:02:05]} 9. Kc2 {[%clk 0:01:58.2]} 9...
Bf5+ {[%clk 0:01:38.6]} 10. Bd3 {[%clk 0:01:56.4]} 10... Bxd3+ {[%clk
0:01:23.5]} 11. Kxd3 {[%clk 0:01:57.3]} 11... Nc6 {[%clk 0:01:22.6]} 12. Be3
{[%clk 0:01:51.6]} 12... O-O-O+ {[%clk 0:01:18.8]} 13. Kc2 {[%clk 0:01:48]}
13... Bd6 {[%clk 0:01:13.8]} 14. Nf3 {[%clk 0:01:44.6]} 14... Rhe8 {[%clk
0:01:10.6]} 15. Rad1 {[%clk 0:01:42.6]} 15... h6 {[%clk 0:01:02.8]} 16. h3
{[%clk 0:01:38.5]} 16... f5 {[%clk 0:01:03]} 17. Rd5 {[%clk 0:01:28.1]} 17... f4
{[%clk 0:00:47.2]} 18. Bd2 {[%clk 0:01:22.6]} 18... Re2 {[%clk 0:00:44.1]} 19.
Rf1 {[%clk 0:01:21.6]} 19... g5 {[%clk 0:00:40.2]} 20. Kd1 {[%clk 0:00:59.3]}
20... Ree8 {[%clk 0:00:35.6]} 21. Re1 {[%clk 0:00:58.8]} 21... Kc7 {[%clk
0:00:29.3]} 22. Rf5 {[%clk 0:00:50.7]} 22... Rxe1+ {[%clk 0:00:26]} 23. Kxe1
{[%clk 0:00:45.5]} 23... Re8+ {[%clk 0:00:26]} 24. Kd1 {[%clk 0:00:44.6]} 24...
Re7 {[%clk 0:00:24.8]} 25. Rf6 {[%clk 0:00:40.9]} 25... Ne5 {[%clk 0:00:19.6]}
26. Nxe5 {[%clk 0:00:35.8]} 26... Bxe5 {[%clk 0:00:20.4]} 27. Rxh6 {[%clk
0:00:36]} 27... f6 {[%clk 0:00:20.8]} 28. Rh8 {[%clk 0:00:23.5]} 28... Rd7
{[%clk 0:00:20.7]} 29. Rg8 {[%clk 0:00:20.6]} 29... Kc6 {[%clk 0:00:20.1]} 30.
Ke2 {[%clk 0:00:20.5]} 30... Kd5 {[%clk 0:00:20.5]} 31. Be1 {[%clk 0:00:15.6]}
31... Ke4 {[%clk 0:00:20.7]} 32. f3+ {[%clk 0:00:15.5]} 32... Kf5 {[%clk
0:00:21.3]} 33. Bf2 {[%clk 0:00:15.6]} 33... a6 {[%clk 0:00:21.8]} 34. Re8
{[%clk 0:00:14.3]} 34... Bc7 {[%clk 0:00:14.6]} 35. Bc5 {[%clk 0:00:12.9]} 35...
Rd5 {[%clk 0:00:13.4]} 36. Bd4 {[%clk 0:00:11.9]} 36... Be5 {[%clk 0:00:13.1]}
37. Bxe5 {[%clk 0:00:10.4]} 37... fxe5 {[%clk 0:00:14]} 38. Re7 {[%clk
0:00:08.9]} 38... Rb5 {[%clk 0:00:14.1]} 39. b3 {[%clk 0:00:08.7]} 39... Rb6
{[%clk 0:00:13.6]} 40. c4 {[%clk 0:00:08.1]} 40... a5 {[%clk 0:00:12.3]} 41. Kd3
{[%clk 0:00:07]} 41... Kf6 {[%clk 0:00:10.7]} 42. Rd7 {[%clk 0:00:06.7]} 42...
Ke6 {[%clk 0:00:10.5]} 43. Rg7 {[%clk 0:00:06.7]} 43... a4 {[%clk 0:00:10.3]}
44. Rg6+ {[%clk 0:00:06.8]} 1-0

[Event "Early-Titled-Tuesday-Blitz-May-14-2024"]
[Site "Chess.com"]
[Date "2024.05.14"]
[Round "3"]
[White "olakenn"]
[Black "Doublekk14"]
[Result "0-1"]
[WhiteElo "1922"]
[BlackElo "2353"]
[TimeControl "180+1"]
[EndTime "8:30:01 PDT"]
[Termination "Doublekk14 won by resignation"]

1. e4 {[%clk 0:02:57]} 1... c5 {[%clk 0:02:58.7]} 2. Nc3 {[%clk 0:02:57]} 2...
Nc6 {[%clk 0:02:57.9]} 3. g3 {[%clk 0:02:57.6]} 3... e5 {[%clk 0:02:57.4]} 4.
Bg2 {[%clk 0:02:58.2]} 4... d6 {[%clk 0:02:57.7]} 5. Nge2 {[%clk 0:02:58.6]}
5... g6 {[%clk 0:02:57.9]} 6. O-O {[%clk 0:02:59.1]} 6... Bg7 {[%clk 0:02:58.7]}
7. d3 {[%clk 0:02:59.2]} 7... Nge7 {[%clk 0:02:59.2]} 8. f4 {[%clk 0:02:59.3]}
8... f5 {[%clk 0:02:56.5]} 9. exf5 {[%clk 0:02:57.3]} 9... Bxf5 {[%clk
0:02:56.2]} 10. h3 {[%clk 0:02:55.7]} 10... O-O {[%clk 0:02:53.2]} 11. g4 {[%clk
0:02:56]} 11... Bd7 {[%clk 0:02:53.1]} 12. fxe5 {[%clk 0:02:51.8]} 12... Nxe5
{[%clk 0:02:49.3]} 13. Ne4 {[%clk 0:02:48.3]} 13... Qc7 {[%clk 0:02:48]} 14.
N2c3 {[%clk 0:02:43.6]} 14... Rxf1+ {[%clk 0:02:38.3]} 15. Bxf1 {[%clk
0:02:36.6]} 15... Rf8 {[%clk 0:02:39.2]} 16. Bg2 {[%clk 0:02:28.6]} 16... h6
{[%clk 0:02:24.2]} 17. Be3 {[%clk 0:02:21]} 17... b6 {[%clk 0:02:22.9]} 18. Qd2
{[%clk 0:02:19.5]} 18... Kh7 {[%clk 0:02:22.3]} 19. Rf1 {[%clk 0:02:18.1]} 19...
Rxf1+ {[%clk 0:02:19.6]} 20. Kxf1 {[%clk 0:02:18]} 20... d5 {[%clk 0:02:14.6]}
21. Nf6+ {[%clk 0:01:43.2]} 21... Bxf6 {[%clk 0:01:50.7]} 22. Bxh6 {[%clk
0:01:42.9]} 22... Bc6 {[%clk 0:01:14.9]} 23. Qf4 {[%clk 0:01:21.5]} 23... Ng8
{[%clk 0:01:05.5]} 24. g5 {[%clk 0:01:16.9]} 24... Bg7 {[%clk 0:00:54.7]} 25.
Bxd5 {[%clk 0:01:06]} 25... Bxd5 {[%clk 0:00:39.5]} 26. Nxd5 {[%clk 0:01:04.7]}
26... Qf7 {[%clk 0:00:38.8]} 27. Bxg7 {[%clk 0:00:47.2]} 27... Qxf4+ {[%clk
0:00:32.7]} 28. Nxf4 {[%clk 0:00:45.7]} 28... Kxg7 {[%clk 0:00:33.6]} 29. Ke2
{[%clk 0:00:40.6]} 29... Ne7 {[%clk 0:00:30.9]} 30. Ke3 {[%clk 0:00:38.6]} 30...
Nf5+ {[%clk 0:00:27.2]} 31. Ke4 {[%clk 0:00:38.2]} 31... Nf7 {[%clk 0:00:26.8]}
32. Kd5 {[%clk 0:00:37.5]} 32... Nxg5 {[%clk 0:00:26.5]} 33. Kc6 {[%clk
0:00:36.9]} 33... Kf6 {[%clk 0:00:23.8]} 34. Kb7 {[%clk 0:00:35.8]} 34... Ne6
{[%clk 0:00:23.9]} 35. Ng2 {[%clk 0:00:28.8]} 35... Nfd4 {[%clk 0:00:23.1]} 36.
c3 {[%clk 0:00:26.8]} 36... Nf3 {[%clk 0:00:19.7]} 37. Kxa7 {[%clk 0:00:26.3]}
37... Neg5 {[%clk 0:00:19.6]} 38. h4 {[%clk 0:00:25.7]} 38... Ne6 {[%clk
0:00:15.4]} 39. Kxb6 {[%clk 0:00:25.7]} 39... Kf5 {[%clk 0:00:15.5]} 40. d4
{[%clk 0:00:25.7]} 40... cxd4 {[%clk 0:00:14.2]} 41. cxd4 {[%clk 0:00:24.1]}
41... Nexd4 {[%clk 0:00:13.9]} 42. a4 {[%clk 0:00:22.8]} 42... Ne5 {[%clk
0:00:11.6]} 43. a5 {[%clk 0:00:23]} 43... Nc4+ {[%clk 0:00:11.5]} 44. Ka6 {[%clk
0:00:21.8]} 44... Nxb2 {[%clk 0:00:09.5]} 45. Kb7 {[%clk 0:00:21.2]} 45... Nc4
{[%clk 0:00:08.2]} 46. a6 {[%clk 0:00:21.5]} 46... Nb5 {[%clk 0:00:08]} 47. Ne3+
{[%clk 0:00:20.4]} 47... Nxe3 {[%clk 0:00:07.6]} 48. Kb6 {[%clk 0:00:20.3]}
48... Nd5+ {[%clk 0:00:07.2]} 49. Kxb5 {[%clk 0:00:19.9]} 49... Nc7+ {[%clk
0:00:07.4]} 50. Kb6 {[%clk 0:00:20.1]} 50... Nxa6 {[%clk 0:00:07.3]} 51. Kxa6
{[%clk 0:00:20.7]} 51... Kg4 {[%clk 0:00:08.2]} 52. Kb5 {[%clk 0:00:21]} 52...
Kxh4 {[%clk 0:00:08.8]} 53. Kc4 {[%clk 0:00:21.5]} 53... g5 {[%clk 0:00:09.1]}
0-1

[Event "Early-Titled-Tuesday-Blitz-May-14-2024"]
[Site "Chess.com"]
[Date "2024.05.14"]
[Round "3"]
[White "Meri-Arabidze"]
[Black "frederiksvane"]
[Result "0-1"]
[WhiteElo "2710"]
[BlackElo "2974"]
[TimeControl "180+1"]
[EndTime "8:30:02 PDT"]
[Termination "frederiksvane won on time"]

1. Nf3 {[%clk 0:03:00.9]} 1... e6 {[%clk 0:02:58]} 2. c4 {[%clk 0:03:01.2]} 2...
d5 {[%clk 0:02:57.8]} 3. g3 {[%clk 0:03:01.6]} 3... dxc4 {[%clk 0:02:57.1]} 4.
Bg2 {[%clk 0:03:02]} 4... Nd7 {[%clk 0:02:54.3]} 5. Qa4 {[%clk 0:02:59.7]} 5...
a6 {[%clk 0:02:53.5]} 6. Qxc4 {[%clk 0:02:58.8]} 6... b5 {[%clk 0:02:53]} 7. Qc2
{[%clk 0:02:59.3]} 7... Bb7 {[%clk 0:02:53.2]} 8. O-O {[%clk 0:02:59.4]} 8...
Ngf6 {[%clk 0:02:53.8]} 9. d3 {[%clk 0:02:53.1]} 9... c5 {[%clk 0:02:42.9]} 10.
b3 {[%clk 0:02:53.2]} 10... Bd6 {[%clk 0:02:41.8]} 11. Bb2 {[%clk 0:02:53.7]}
11... O-O {[%clk 0:02:41.7]} 12. Nc3 {[%clk 0:02:51.9]} 12... e5 {[%clk
0:02:41.4]} 13. a4 {[%clk 0:02:40.1]} 13... Qb6 {[%clk 0:02:38.1]} 14. Rfd1
{[%clk 0:02:36.5]} 14... Rac8 {[%clk 0:02:15.9]} 15. axb5 {[%clk 0:02:32.8]}
15... axb5 {[%clk 0:02:15.9]} 16. Ne4 {[%clk 0:02:33.5]} 16... Rfe8 {[%clk
0:02:02.1]} 17. Nh4 {[%clk 0:02:26.2]} 17... Bf8 {[%clk 0:01:58.7]} 18. Nf5
{[%clk 0:02:20.6]} 18... Nd5 {[%clk 0:01:57.4]} 19. Bh3 {[%clk 0:02:15]} 19...
Rcd8 {[%clk 0:01:54.9]} 20. Qd2 {[%clk 0:02:09.7]} 20... h6 {[%clk 0:01:22.1]}
21. Qa5 {[%clk 0:01:58.9]} 21... Qc6 {[%clk 0:01:14.3]} 22. Qd2 {[%clk
0:01:11.7]} 22... Kh7 {[%clk 0:01:14.2]} 23. Ne3 {[%clk 0:01:04.3]} 23... Nxe3
{[%clk 0:01:05.2]} 24. Qxe3 {[%clk 0:01:05.2]} 24... Qd5 {[%clk 0:00:55.2]} 25.
Ra7 {[%clk 0:01:03.1]} 25... Bc6 {[%clk 0:00:25.2]} 26. Bf5+ {[%clk 0:01:02.1]}
26... Kg8 {[%clk 0:00:23.1]} 27. Rc7 {[%clk 0:00:59.8]} 27... Rc8 {[%clk
0:00:16.6]} 28. Rxc8 {[%clk 0:00:26.2]} 28... Rxc8 {[%clk 0:00:17.5]} 29. Ra1
{[%clk 0:00:20.7]} 29... Ra8 {[%clk 0:00:10.7]} 30. Rxa8 {[%clk 0:00:19.8]}
30... Bxa8 {[%clk 0:00:11.6]} 31. Bxd7 {[%clk 0:00:19.3]} 31... Qxd7 {[%clk
0:00:12]} 32. Bxe5 {[%clk 0:00:20]} 32... Qd5 {[%clk 0:00:11.4]} 33. Bf4 {[%clk
0:00:07.4]} 33... Qxb3 {[%clk 0:00:10.4]} 34. f3 {[%clk 0:00:08.1]} 34... Qd5
{[%clk 0:00:06.2]} 35. g4 {[%clk 0:00:08.5]} 35... b4 {[%clk 0:00:06.4]} 36. Nd2
{[%clk 0:00:04.8]} 36... Bc6 {[%clk 0:00:04.5]} 37. Nc4 {[%clk 0:00:05]} 37...
Bb5 {[%clk 0:00:04.2]} 38. Qe5 {[%clk 0:00:03.2]} 38... Bxc4 {[%clk 0:00:03.6]}
39. dxc4 {[%clk 0:00:03.4]} 39... Qxc4 {[%clk 0:00:04.4]} 40. Kf2 {[%clk
0:00:03.7]} 40... b3 {[%clk 0:00:04.9]} 41. g5 {[%clk 0:00:03.9]} 41... hxg5
{[%clk 0:00:05.1]} 42. Bxg5 {[%clk 0:00:04.4]} 42... Qd4+ {[%clk 0:00:03.8]} 43.
Qxd4 {[%clk 0:00:04.3]} 43... cxd4 {[%clk 0:00:04.7]} 44. Bc1 {[%clk 0:00:04.3]}
44... Bb4 {[%clk 0:00:05.4]} 45. e3 {[%clk 0:00:03.8]} 45... Bc3 {[%clk
0:00:05.1]} 46. exd4 {[%clk 0:00:04]} 46... Bxd4+ {[%clk 0:00:05.7]} 47. Kg3
{[%clk 0:00:02.4]} 47... b2 {[%clk 0:00:06.2]} 0-1